Cogmind - Beta 17.1 @@@ ROGUE MODE // 2026.08.28 @ 02:40:12 Player: KN-OKO Result: Destroyed by G-50 Soldier with Heavy Laser Performance ------------- Evolutions (4) 2000 Regions Visited (10) 2000 Robots Destroyed (129) 645 Value Destroyed (3685) 3685 Prototype IDs (19) 380 Alien Tech Used (0) 0 Bonus (11449) 11449 TOTAL SCORE: 20159 Bonus ------- High Alert Combat Kills 151 Follower Combat Kills 882 Prayed to X0-1V1 5000 Major X0-1V1 Interference 3350 Entered Garrisons 600 Used RIF Installer 1500 Friendly Fire -34 Cogmind --------- Core Integrity 0/530 Matter 995/1000 Energy 1012/1095 System Corruption 0% Temperature Cool (23) Movement Treading (160) Location -6/Garrison Parts ------- > --- POWER (2) -------- Hybrid Fission Core (fused) Fusion Reactor (fused) > --- PROPULSION (4) --- Heavy Treads > --- UTILITY (7) ------ Improved Heat Sink High-capacity Storage Unit Improved Melee Analysis Suite Improved Melee Analysis Suite Advanced Melee Analysis Suite Self-contained Transmogrifier > --- WEAPON (3) ------- Power Maul > --- INVENTORY (20) --- Light Fission Core Energy Well (350) High-capacity Matter Pod (200) Enhanced Optical Array Improved Melee Analysis Suite Improved Melee Analysis Suite Layered Light Armor Plating Heavy Machine Gun Heavy Machine Gun Heavy Machine Gun Heavy Rocket Launcher Peak State ------------ > --- POWER ------------ Hybrid Fission Core Hybrid Fission Core > --- PROPULSION ------- Medium Treads Improved Medium Treads Heavy Treads > --- UTILITY ---------- High-capacity Storage Unit Improved Melee Analysis Suite Advanced Melee Analysis Suite Layered Light Armor Plating Hardlight Generator Self-contained Transmogrifier X0-1V1's Piety Tracker > --- WEAPON ----------- Phase Cannon Magnetic Acceleration Cannon Power Maul > --- INVENTORY -------- Light Fission Core Improved Heat Sink Energy Well High-capacity Matter Pod Enhanced Optical Array Improved Melee Analysis Suite Improved Melee Analysis Suite Improved Melee Analysis Suite Heavy Machine Gun Heavy Machine Gun Heavy Machine Gun Heavy Rocket Launcher [Rating: 89] Favorites ----------- Power Makeshift Power Source Engine Makeshift Power Source Power Core Hybrid Fission Core Reactor Cold Fusion Reactor Propulsion Light Treads Treads Light Treads Wheel Armored Wheel Hover Unit Improved Hover Unit Flight Unit VTOL Module Utility Self-contained Transmogrifier Device Self-contained Transmogrifier Storage High-capacity Storage Unit Processor Improved Melee Analysis Suite Hackware Hacking Suite Protection Improved Light Armor Plating Weapon High-powered Shotgun Energy Gun Salvaging Laser Energy Cannon Phase Cannon Ballistic Gun High-powered Shotgun Ballistic Cannon Magnetic Acceleration Cannon Launcher Heavy Shock Bomb Launcher Impact Weapon Power Maul Slashing Weapon Katana Build | -11 -10 -9 -9 -8 -8 -7 -7 -7 -6 -6 ------- Run | Yrd Mat Mat Sto Mat Gar Fac Gar Fac Fac Gar Slots Evolved 8 | . . 2 . 2 . 2 . . 2 . Power 1 | . . . . . . . . . 1 . Propulsion 1 | . . . . . . 1 . . . . Utility 5 | . . 1 . 2 . 1 . . 1 . Weapon 1 | . . 1 . . . . . . . . Parts Attached 109 | 6 4 12 7 2 9 14 20 11 21 3 Power 10 | 1 . . 1 . 1 2 2 . 3 . Engine 8 | 1 . . 1 . 1 2 1 . 2 . Core 1 | . . . . . . . 1 . . . Reactor 1 | . . . . . . . . . 1 . Propulsion 27 | 2 1 3 3 . 2 2 8 2 2 2 Treads 10 | 1 1 . . . . . 2 2 2 2 Leg . | . . . . . . . . . . . Wheel 4 | 1 . 3 . . . . . . . . Hover 8 | . . . 3 . 2 2 1 . . . Flight 5 | . . . . . . . 5 . . . Utility 34 | 2 . 2 . 2 2 6 6 3 10 1 Device 11 | 1 . 1 . 1 . 1 3 . 4 . Storage 4 | 1 . 1 . . . . 1 1 . . Processor 8 | . . . . . . 1 . 1 5 1 Hackware 2 | . . . . . . 1 . . 1 . Protection 9 | . . . . 1 2 3 2 1 . . Artifact . | . . . . . . . . . . . Weapon 38 | 1 3 7 3 . 4 4 4 6 6 . Energy Gun 8 | 1 3 4 . . . . . . . . Energy Cannon 2 | . . . . . . . . . 2 . Ballistic Gun 14 | . . 3 3 . 1 . 3 4 . . Ballistic Cannon 1 | . . . . . . . . . 1 . Launcher 2 | . . . . . 1 . 1 . . . Special Weapon . | . . . . . . . . . . . Impact Weapon 3 | . . . . . 1 . . 1 1 . Slashing Weapon 8 | . . . . . 1 4 . 1 2 . Piercing Weapon . | . . . . . . . . . . . Special Melee Weapon . | . . . . . . . . . . . Unidentified Prototypes 6 | . . 3 1 . . . . 1 1 . Corrupted Parts 1 | . . . . . . . 1 . . . System Corruption 7 | . . . . . . . 7 . . . Parts Lost 35 | . . . 3 . 4 . 13 . 6 9 Power 4 | . . . . . 1 . 1 . 2 . Propulsion 13 | . . . 1 . 1 . 5 . 1 5 Utility 11 | . . . . . 1 . 5 . 3 2 Weapon 7 | . . . 2 . 1 . 2 . . 2 Highest Loss Streak 9 | . . . 1 . 1 . 7 . 2 9 To Critical Strikes . | . . . . . . . . . . . Average Backups 10 | 5 7 7 9 11 10 4 6 13 13 13 Power . | . 1 1 1 1 . . . 1 . 1 Propulsion 2 | 3 3 2 3 5 4 1 . 1 2 1 Utility 2 | . 1 1 2 1 1 . 2 4 4 6 Weapon 3 | 1 2 2 3 4 3 1 3 5 5 4 Tool/Special . | . . . . . . . . . . . Unused Backups 27 | . 8 2 2 . 4 1 1 2 . 7 Power 2 | . . . . . . . 1 . . 1 Propulsion 9 | . 4 1 2 . 1 1 . . . . Utility 9 | . 2 1 . . 1 . . 1 . 4 Weapon 7 | . 2 . . . 2 . . 1 . 2 Tool/Special . | . . . . . . . . . . . Average Slot Usage (%) 95 | . 99 99 94 90 91 91 89 99 95 93 Engine 7 | . 14 10 7 8 7 6 4 7 4 . Core 1 | . . . 2 . . . 1 . 3 10 Treads 12 | . 15 9 . . . . 8 23 25 20 Wheel 3 | . 12 11 4 . . . . . . . Hover 7 | . . 3 20 16 20 26 7 . . . Flight 1 | . . . . . . . 10 4 . . Device 17 | . 14 21 20 25 17 18 18 18 13 17 Storage 7 | . 14 10 10 8 7 . 4 7 6 6 Processor 3 | . . . . . . 3 4 2 11 13 Hackware 1 | . . . . . 5 7 2 . . . Protection 5 | . . . . 7 8 6 6 13 6 4 Energy Gun 6 | . 27 23 6 1 . . . . . . Ballistic Gun 10 | . . 8 21 23 7 . 13 21 4 . Impact Weapon 2 | . . . 1 . 7 3 . . 3 6 Slashing Weapon 2 | . . . . . 6 14 5 . 3 . Peak Build Rating 89 | 6 18 41 53 54 56 72 72 61 85 89 Average Rating 48 | 4 8 35 47 53 52 64 51 57 74 79 On Entrance 44 | . 6 18 41 47 54 50 72 53 60 83 Avg Prop Armor Cover (%) 7 | 17 14 4 4 . . . 3 3 . . Naked Turns . | . . . . . . . . . . . Heaviest Build 95 | 11 13 33 38 44 50 32 41 63 95 89 Greatest Support 106 | 16 40 40 29 27 27 33 40 95 101 106 Greatest Overweight (x) 2 | . . 1 2 1 1 . 1 . 1 . Average Overweight (x) . | . . . 1 1 . . . . . . Largest Inventory Capacity 20 | 8 8 15 15 15 15 5 10 20 20 20 Average Capacity 13 | 7 8 9 15 15 13 5 7 16 20 20 Most Carried 17 | 7 8 8 14 12 13 5 10 17 17 15 Average Carried 10 | 5 7 7 9 11 10 4 6 14 14 13 Final Capacity 20 | 8 8 15 15 15 5 5 10 20 20 20 Final Carried 17 | 7 8 8 12 12 5 5 10 17 15 11 Transmogrified Parts 57 | . 1 5 13 1 7 7 6 7 8 2 Integrity Recovered 959 | . 10 12 155 24 132 136 75 126 242 47 Class Distribution -------------------- 36% | Mutant 19% | Gunner 18% | Scavenger-Tank 11% | Gladiator 7% | Tank 4% | Commander-Gunner Dominant Class ---------------- Mutant | -10/Materials Gunner | -9/Materials Gunner | -9/Storage Tank | -8/Materials Mutant | -8/Garrison Gladiator | -7/Factory Scavenger-Tank | -7/Garrison Scavenger-Tank | -7/Factory Gladiator | -6/Factory Mutant | -6/Garrison Resources | -11 -10 -9 -9 -8 -8 -7 -7 -7 -6 -6 ----------- Run | Yrd Mat Mat Sto Mat Gar Fac Gar Fac Fac Gar Matter Collected 3540 | 259 61 394 355 47 437 443 409 786 349 . Remotely . | . . . . . . . . . . . Salvage Created 4463 | 81 125 518 608 47 755 322 505 879 623 . Parts 254 | 11 18 26 35 5 32 16 36 44 31 . Haulers Intercepted 5 | . . 2 . . . 1 . 1 1 . Recyclers Shooed 2 | . . 1 . . . . . 1 . . Parts Field Recycled . | . . . . . . . . . . . Retrieved Matter . | . . . . . . . . . . . Parts Self-Destructed . | . . . . . . . . . . . Prevented . | . . . . . . . . . . . Parts Restored . | . . . . . . . . . . . Kills | -11 -10 -9 -9 -8 -8 -7 -7 -7 -6 -6 ------- Run | Yrd Mat Mat Sto Mat Gar Fac Gar Fac Fac Gar Combat Hostiles Destroyed 97 | . 3 9 18 3 19 2 18 14 11 . Melee 30 | . . . 1 . 12 2 8 . 7 . Guns 53 | . 3 9 17 3 1 . 6 14 . . AOE 10 | . . . . . 4 . 4 . 2 . Classes Destroyed 15 | 1 3 5 1 . 1 2 . 1 1 . Worker 9 | . 1 2 2 . . . . 2 2 . Builder 2 | . 1 . . . . . . 1 . . Tunneler 6 | 4 1 . . . . 1 . . . . Hauler 5 | . . 2 . . . 1 . 1 1 . Recycler 3 | . . 1 . . . . . 2 . . Operator 3 | . . . . . . 1 . 2 . . Watcher 4 | . . . . . . 3 . . 1 . Swarmer 44 | . 3 4 7 3 7 . 14 2 4 . Grunt 26 | . . 2 7 . 6 . 1 9 1 . Brawler 2 | . . 1 . . . . 1 . . . Duelist 2 | . . . 1 . 1 . . . . . Sentry 13 | . . 2 3 . 2 2 1 2 1 . Hunter 7 | . . . . . 3 . 1 . 3 . Programmer 2 | . . . . . . . . 1 1 . Behemoth 1 | . . . . . . . . . 1 . Best Kill Streak 6 | 4 4 5 6 3 4 4 4 6 6 . Combat Bots Only 5 | . 3 4 5 3 4 2 4 2 5 . Max Kills in Single Turn 4 | 1 1 2 1 1 3 1 4 2 3 . Gunslinging . | . . . . . . . . . . . Exploded 4 | . . . . . 3 . 4 . 2 . Melee 1 | . . . 1 . 1 1 1 . 1 . Uniques/NPCs Destroyed . | . . . . . . . . . . . Combat | -11 -10 -9 -9 -8 -8 -7 -7 -7 -6 -6 -------- Run | Yrd Mat Mat Sto Mat Gar Fac Gar Fac Fac Gar Hostile Shots Fired 947 | . 25 19 107 11 99 54 153 52 151 276 Missed 277 | . 6 5 33 2 23 19 50 14 42 83 Hits 670 | . 19 14 74 9 76 35 103 38 109 193 Melee 5 | . . . 4 . . . 1 . . . Projectile 665 | . 19 14 70 9 76 35 102 38 109 193 Critical Strikes 18 | . . 1 3 . 4 . 1 2 2 5 Actively Blocked 1 | . . . . . . . 1 . . . Damage Taken 7526 | . 142 164 920 70 1041 265 1184 492 1230 2018 Core 1313 | . 74 17 205 33 112 39 255 40 115 423 Absorbed by Shields 948 | . . . . . . . . . 232 716 Redirected to Shielding 10 | . . . . . . . 2 8 . . Core Remaining (%) 44 | 100 26 . 11 . 65 . . 22 . . Volleys Fired 165 | 10 10 33 42 4 10 . 13 40 3 . Largest 3 | 1 2 3 3 3 3 . 3 3 3 . Hottest 136 | 50 100 136 129 71 71 . 79 88 130 . Shots Fired 426 | 10 20 89 114 12 22 1 36 114 8 . Gun 416 | 10 20 89 114 12 18 . 35 114 4 . Cannon 3 | . . . . . . 1 . . 2 . Launcher 7 | . . . . . 4 . 1 . 2 . Special . | . . . . . . . . . . . Kinetic 306 | . . 30 93 12 18 . 35 114 4 . Thermal 106 | 10 20 59 14 . . 1 . . 2 . Explosive 6 | . . . . . 4 . 1 . 1 . Electromagnetic 8 | . . . 7 . . . . . 1 . Robot Hit Streak 20 | 10 5 12 11 2 6 . 10 20 5 . Robot Miss Streak 8 | . 8 3 4 4 2 . 3 5 2 . Penetration Max 1 | . . . . . . . . 1 . . Secondary Targets 2 | . . . 1 . . . 1 . . . Max Gunslinging Chain 1 | . . . 1 . . . 1 . . . Shots Hit Robots 421 | 10 7 62 82 4 61 19 51 79 31 15 Core Hits 203 | 4 6 20 32 3 23 7 37 52 17 2 Critical Kills 5 | . . . . . . . . 5 . . Critical Parts Destroyed 12 | . . . . . 3 1 . 5 3 . Critical Strikes 33 | . 1 3 2 . 9 1 3 10 4 . Burn 6 | . 1 3 2 . . . . . . . Destroy 10 | . . . . . . . . 10 . . Smash 7 | . . . . . 3 1 . . 3 . Sever 10 | . . . . . 6 . 3 . 1 . Melee Attacks 190 | . . . 5 . 60 29 48 1 32 15 Impact 65 | . . . 5 . 27 4 . 1 13 15 Slashing 125 | . . . . . 33 25 48 . 19 . Piercing . | . . . . . . . . . . . Sneak Attacks 4 | . . . . . . 2 . . 2 . Combat Hostiles . | . . . . . . . . . . . Follow-up Attacks 26 | . . . . . 10 7 6 . 3 . Damage Inflicted 11187 | 124 99 777 1403 56 2143 870 1679 1474 1766 796 Guns 4539 | 124 99 777 1315 56 153 . 469 1471 75 . Cannons 41 | . . . . . 15 . . . 26 . Explosions 1017 | . . . . . 300 . 245 . 472 . Melee 5587 | . . . 88 . 1675 870 965 . 1193 796 Ramming 3 | . . . . . . . . 3 . . Kinetic 3623 | . . 334 1065 56 153 . 469 1471 75 . Thermal 836 | 124 99 443 144 . . . . . 26 . Explosive 950 | . . . . . 300 . 245 . 405 . Electromagnetic 173 | . . . 106 . . . . . 67 . Impact 2252 | . . . 88 . 679 184 . . 505 796 Slashing 3350 | . . . . . 1011 686 965 . 688 . Piercing . | . . . . . . . . . . . Highest Corruption 9 | . . . . . . . 9 1 . . Average Corruption 4 | . . . . . . . 7 1 . . Corruption Purged . | . . . . . . . . . . . Corruption Blocked . | . . . . . . . . . . . Effects 11 | . . . . . . . 9 2 . . Message Errors 4 | . . . . . . . 4 . . . Matter Fused 3 | . . . . . . . 2 1 . . Heat Flow Errors 1 | . . . . . . . 1 . . . Data Loss (minor) 2 | . . . . . . . 1 1 . . Weapon Failures 1 | . . . . . . . 1 . . . Overload Shots . | . . . . . . . . . . . Overflow Damage 685 | . . . 23 . 168 123 21 . 341 9 Projectiles . | . . . . . . . . . . . Explosions 121 | . . . . . . . . . 121 . Melee 564 | . . . 23 . 168 123 21 . 220 9 Knockbacks 3 | . . . . . 1 . . 1 1 . Impact 3 | . . . . . 1 . . 1 1 . Kinetic . | . . . . . . . . . . . Secondary . | . . . . . . . . . . . Self-Inflicted Damage 36 | . . . . . . . . . 36 . Shots 2 | . . . . . . . . . 2 . Rammed 1 | . . . . . . . . 1 . . Targets Rammed 2 | . . . . . . . . 2 . . Kicked . | . . . . . . . . . . . Crushed 1 | . . . . . . . . 1 . . Highest Temperature 328 | 50 40 196 328 . 10 33 112 133 186 311 Average Temperature 67 | 19 20 53 111 . 6 14 22 40 77 134 Received Heat Transfer 2174 | . . 51 282 . 369 84 174 225 152 837 Siege Activations . | . . . . . . . . . . . Martial Activations . | . . . . . . . . . . . Shielding Activations . | . . . . . . . . . . . Robots Disrupted . | . . . . . . . . . . . Combat Hostiles . | . . . . . . . . . . . Robots Corrupted 6 | . . . . . 2 1 . . 3 . Combat Hostiles 4 | . . . . . 2 . . . 2 . Parts Fried 10 | . . . . . 3 1 . . 6 . Impact Corruptions 17 | . . . 1 . 5 3 . . 7 1 Robots Melted . | . . . . . . . . . . . Combat Hostiles . | . . . . . . . . . . . Parts Melted 11 | 3 1 7 . . . . . . . . Heat Transferred 2649 | 370 360 1489 380 . . . . . 50 . Parts Sabotaged . | . . . . . . . . . . . Parts Stolen . | . . . . . . . . . . . Parts Stripped . | . . . . . . . . . . . Power Chain Reactions . | . . . . . . . . . . . Alert | -11 -10 -9 -9 -8 -8 -7 -7 -7 -6 -6 ------- Run | Yrd Mat Mat Sto Mat Gar Fac Gar Fac Fac Gar Maximum Alert Level 2 | . . . 1 1 2 1 2 1 . . Low Security (%) 52 | 100 100 100 49 82 27 . . . 100 100 Level 1 38 | . . . 50 17 43 100 37 100 . . Level 2 9 | . . . . . 29 . 62 . . . Level 3 . | . . . . . . . . . . . Level 4 . | . . . . . . . . . . . Level 5 . | . . . . . . . . . . . High Security . | . . . . . . . . . . . Max Security . | . . . . . . . . . . . Peak Influence 678 | 10 70 130 373 207 678 373 613 366 146 49 Initial 355 | . . 15 48 141 121 355 230 321 137 49 Average 192 | 1 5 30 191 170 318 345 461 303 61 30 Influence Increases 3587 | 20 85 272 912 86 637 134 573 467 401 . Destroy 0b10 Robot/C 2265 | . 60 180 600 60 440 40 405 270 210 . Destroy 0b10 Robot/NC 172 | 20 15 25 20 . 10 30 . 36 16 . Destroy Leader 430 | . 10 54 142 10 20 28 34 74 58 . Allied During Kill 183 | . . . 96 . 3 . 49 22 13 . Successful Hack 112 | . . 12 20 . 42 18 12 . 8 . Disable Machine 87 | . . . . . 15 . . 24 48 . Destroy Structure 74 | . . 1 4 1 17 3 7 5 36 . Partial Spotted 15 | . . . . . . 15 . . . . Lose Combat Pursuer 249 | . . . 30 15 90 . 66 36 12 . Influence Decreases 3587 | 20 47 196 690 235 146 483 289 798 612 71 Entered New Map 1231 | . . 23 66 195 66 323 99 292 145 22 Time Decay 1622 | 20 47 173 374 40 . 160 . 446 362 . Lost Part 296 | . . . 30 . 40 . 130 . 47 49 Lost Ally 438 | . . . 220 . 40 . 60 60 58 . Squads Dispatched 19 | . 2 1 7 . . 1 . 6 2 . Investigation 2 | . 2 . . . . . . . . . Extermination 5 | . . . . . . 1 . 2 2 . Reinforcement 7 | . . 1 2 . . . . 4 . . Assault 2 | . . . 2 . . . . . . . Garrison 3 | . . . 3 . . . . . . . Intercept . | . . . . . . . . . . . Searches Triggered . | . . . . . . . . . . . Construction Impeded 1 | . . . . . . . . 1 . . Haulers Reinforced . | . . . . . . . . . . . Active Scanning Responses . | . . . . . . . . . . . Cargo Convoy Interrupts . | . . . . . . . . . . . Stealth | -11 -10 -9 -9 -8 -8 -7 -7 -7 -6 -6 --------- Run | Yrd Mat Mat Sto Mat Gar Fac Gar Fac Fac Gar Distress Signals 4 | . 1 1 1 . . . . 1 . . Communications Jammed . | . . . . . . . . . . . Distress Signals . | . . . . . . . . . . . Times Spotted 168 | . 7 14 35 5 22 6 29 27 16 7 Peak Tracking Total 9 | . 3 4 9 3 8 4 6 4 4 7 Tactical Retreats 14 | . . . 2 1 4 . 4 2 1 . Traps | -11 -10 -9 -9 -8 -8 -7 -7 -7 -6 -6 ------- Run | Yrd Mat Mat Sto Mat Gar Fac Gar Fac Fac Gar Traps Triggered 10 | . 1 . 4 . 3 . . . 2 . Indirectly . | . . . . . . . . . . . Trap Hack Attempts . | . . . . . . . . . . . Triggered . | . . . . . . . . . . . Disarmed . | . . . . . . . . . . . Reprogrammed . | . . . . . . . . . . . Reused . | . . . . . . . . . . . Traps Extracted . | . . . . . . . . . . . Installed 6 | . . . . . . 5 . 1 . . Triggered . | . . . . . . . . . . . Most Traps Carried 1 | . . . . . . . . 1 . . Machines | -11 -10 -9 -9 -8 -8 -7 -7 -7 -6 -6 ---------- Run | Yrd Mat Mat Sto Mat Gar Fac Gar Fac Fac Gar Machines Disabled 7 | . . . . . 1 . . 2 4 . Max in Single Turn 4 | . . . . . 1 . . 1 4 . Garrison Access 1 | . . . . . . . . 1 . . Phase Generator 2 | . . . . . 1 . 1 . . . Machines Repaired . | . . . . . . . . . . . Machines Dismantled . | . . . . . . . . . . . Machines Sabotaged . | . . . . . . . . . . . Overloaded Fab Kills . | . . . . . . . . . . . Hacking | -11 -10 -9 -9 -8 -8 -7 -7 -7 -6 -6 --------- Run | Yrd Mat Mat Sto Mat Gar Fac Gar Fac Fac Gar Machines Accessed 30 | . 1 5 5 1 4 6 1 3 4 . Terminals 21 | . 1 5 3 . 4 3 1 2 2 . Fabricators 2 | . . . . . . 1 . . 1 . Repair Stations . | . . . . . . . . . . . Recycling Units 3 | . . . 2 . . 1 . . . . Scanalyzers . | . . . . . . . . . . . Garrison Access 4 | . . . . 1 . 1 . 1 1 . Total Hacks 62 | . 2 15 13 1 7 11 1 3 9 . Successful 32 | . . 8 8 1 4 5 1 1 4 . Failed 29 | . 2 6 5 . 3 6 . 2 5 . Catastrophic 2 | . . . . . . 1 . 1 . . Database Lockouts 1 | . . 1 . . . . . . . . Manual 30 | . 3 13 3 . . 5 . 1 5 . Terminals 47 | . 2 15 8 . 7 7 1 2 5 . Fabricators 5 | . . . . . . 2 . . 3 . Repair Stations . | . . . . . . . . . . . Recycling Units 6 | . . . 5 . . 1 . . . . Scanalyzers . | . . . . . . . . . . . Garrison Access 4 | . . . . 1 . 1 . 1 1 . Terminal Hacks 12 | . . 2 4 . 4 1 1 . . . Robot Analysis 1 | . . 1 . . . . . . . . Prototype ID Bank 2 | . . 1 1 . . . . . . . Open Door 1 | . . . . . 1 . . . . . Level Access Points 1 | . . . 1 . . . . . . . Emergency Access Points 1 | . . . . . 1 . . . . . Locate Traps 3 | . . . 2 . . 1 . . . . Garrison Registry 2 | . . . . . 1 . 1 . . . Patrol Navigation 1 | . . . . . 1 . . . . . Fabricator Hacks 2 | . . . . . . 1 . . 1 . Network Status 1 | . . . . . . . . . 1 . Build 1 | . . . . . . 1 . . . . Repair Station Hacks . | . . . . . . . . . . . Recycling Unit Hacks 4 | . . . 3 . . 1 . . . . Process 1 | . . . 1 . . . . . . . Report Inventory 3 | . . . 2 . . 1 . . . . Scanalyzer . | . . . . . . . . . . . Garrison Access Hacks 4 | . . . . 1 . 1 . 1 1 . Unlock Access 3 | . . . . 1 . 1 . . 1 . Seal Access 1 | . . . . . . . . 1 . . Unauthorized Hacks 10 | . . 6 1 . . 1 . . 2 . Terminals 10 | . . 6 1 . . 1 . . 2 . Botnet 7 | . . 4 1 . . 1 . . 1 . Disrupt 1 | . . 1 . . . . . . . . Skim 2 | . . 1 . . . . . . 1 . Fabricators . | . . . . . . . . . . . Repair Stations . | . . . . . . . . . . . Recycling Units . | . . . . . . . . . . . Scanalyzers . | . . . . . . . . . . . Garrison Access . | . . . . . . . . . . . Data Cores Recovered 2 | . . . . . . 1 . 1 . . Used 1 | . . . . . . 1 . . . . Hacking Detections 21 | . 1 3 3 1 2 5 . 2 4 . Full Trace Events . | . . . . . . . . . . . Feedback Events . | . . . . . . . . . . . Feedback Blocked . | . . . . . . . . . . . Robot Schematics Acquired . | . . . . . . . . . . . Robots Built . | . . . . . . . . . . . Authchips . | . . . . . . . . . . . Time . | . . . . . . . . . . . Total Robot Build Rating . | . . . . . . . . . . . Part Schematics Acquired . | . . . . . . . . . . . Parts Built 1 | . . . . . . 1 . . . . Authchips . | . . . . . . . . . . . Time 42 | . . . . . . 42 . . . . Total Part Build Rating 4 | . . . . . . 4 . . . . Part Studies Acquired . | . . . . . . . . . . . Parts Repaired . | . . . . . . . . . . . Time . | . . . . . . . . . . . Parts Recycled . | . . . . . . . . . . . Recycled Matter 2 | . . . 2 . . . . . . . Retrieved Matter . | . . . . . . . . . . . Retrieved Components . | . . . . . . . . . . . Parts Scanalyzed . | . . . . . . . . . . . Part Schematics Acquired . | . . . . . . . . . . . Parts Damaged . | . . . . . . . . . . . Bothacking | -11 -10 -9 -9 -8 -8 -7 -7 -7 -6 -6 ------------ Run | Yrd Mat Mat Sto Mat Gar Fac Gar Fac Fac Gar Used RIF Installer 3 | . . . . . 1 . 2 . . . Coupler Efficiency 1 | . . . . . . . 1 . . . Threat Obfuscator 1 | . . . . . . . 1 . . . Robots Hacked . | . . . . . . . . . . . Non-combat . | . . . . . . . . . . . Combat . | . . . . . . . . . . . Robot Hacks Applied . | . . . . . . . . . . . Relay Couplers Released . | . . . . . . . . . . . Fabnet Peak Effective % . | . . . . . . . . . . . Robots Rewired 1 | . . . . . 1 . . . . . Allies Hacked . | . . . . . . . . . . . Hacks Repelled . | . . . . . . . . . . . Allies | -11 -10 -9 -9 -8 -8 -7 -7 -7 -6 -6 -------- Run | Yrd Mat Mat Sto Mat Gar Fac Gar Fac Fac Gar Total Allies 23 | . . . 12 . 2 . 6 . 3 . Largest Group 10 | . . . 10 . 1 . 4 3 3 . Highest-Rated Group 175 | . . . 94 . 31 . 175 79 129 . Highest-Rated Ally 95 | . . . 31 . 31 . 95 43 43 . Total Orders . | . . . . . . . . . . . Ally Attacks 171 | . . . 72 . 12 . 21 28 38 . Total Damage 3244 | . . . 825 . 167 . 698 618 936 . Kills 34 | . . . 15 . 3 . 8 5 3 . Allies Corrupted . | . . . . . . . . . . . Allies Melted . | . . . . . . . . . . . X0-1V1 Amusement Gains 169 | . 18 13 13 1 8 7 57 9 22 21 Average Entertainment 41 | . 33 26 22 12 18 23 54 77 68 82 Good Acts 45 | . 1 3 7 2 11 5 6 5 4 1 Bad Acts 23 | . 4 2 4 . 2 5 . 3 1 2 Intel | -11 -10 -9 -9 -8 -8 -7 -7 -7 -6 -6 ------- Run | Yrd Mat Mat Sto Mat Gar Fac Gar Fac Fac Gar Active Infowar (turns) 746 | 6 740 . . . . . . . . . Seismic 746 | 6 740 . . . . . . . . . Robot Analysis Total 1 | . . 1 . . . . . . . . Derelict Logs Recovered . | . . . . . . . . . . . Drone Launches . | . . . . . . . . . . . Drone Recoveries . | . . . . . . . . . . . Exploration | -11 -10 -9 -9 -8 -8 -7 -7 -7 -6 -6 ------------- Run | Yrd Mat Mat Sto Mat Gar Fac Gar Fac Fac Gar Turns Passed 6417 | 93 870 573 863 86 776 335 569 1119 1026 107 Spaces Moved 3849 | 56 316 342 424 57 462 623 422 580 544 23 Core 3 | 2 . . . . . . 1 . . . Treads 1507 | . 58 135 . . . . 167 580 544 23 Legs . | . . . . . . . . . . . Wheels 530 | 54 258 207 11 . . . . . . . Hover 1765 | . . . 413 57 462 623 210 . . . Flight 44 | . . . . . . . 44 . . . Fastest Speed 26 | 50 100 90 105 111 45 38 26 160 160 160 Average Speed 112 | 98 111 121 123 111 93 40 90 160 162 160 Slowest Speed 250 | 100 160 160 176 111 111 43 240 160 250 160 Overloaded Moves . | . . . . . . . . . . . Propulsion Burnouts . | . . . . . . . . . . . Robots Hopped . | . . . . . . . . . . . Potential Cave-ins . | . . . . . . . . . . . Cave-ins Triggered . | . . . . . . . . . . . Exploration Rate (%) 29 | 3 43 45 65 9 46 17 58 18 12 7 Regions Visited 10 Branch Regions 1 Pre-discovered Areas . | . . . . . . . . . . . Known Exits Taken 4 | . . . 1 1 . 1 . . 1 . Unknown Exits Taken 4 | 1 1 1 . . . . . 1 . . Scrap Searched . | . . . . . . . . . . . Spaces Dug 8 | . . . 1 . . 2 3 1 1 . Terrain Destroyed 75 | . . . 1 . 17 2 7 2 46 . Melee 8 | . . . 1 . . 2 3 1 1 . Projectile 1 | . . . . . . . . 1 . . AOE 66 | . . . . . 17 . 4 . 45 . Terrain Rammed . | . . . . . . . . . . . Walls Destroyed . | . . . . . . . . . . . Machines Disabled . | . . . . . . . . . . . Actions | -11 -10 -9 -9 -8 -8 -7 -7 -7 -6 -6 --------- Run | Yrd Mat Mat Sto Mat Gar Fac Gar Fac Fac Gar Total 5416 | 81 820 442 664 71 717 698 544 688 627 64 Wait 873 | 3 475 32 122 6 137 5 34 30 8 21 Move 3842 | 55 315 341 423 57 461 623 421 579 544 23 Hop . | . . . . . . . . . . . Pick Up 78 | 7 7 8 11 2 4 11 8 13 7 . Fast Attach 53 | 6 2 4 2 . . 7 15 3 13 1 Attach 40 | . . 6 7 2 6 1 3 3 9 3 Detach 31 | . . 4 5 . 2 5 3 2 10 . Swap 32 | . 4 4 . . 7 6 2 5 3 1 Drop 60 | . 7 10 3 . 9 15 4 9 3 . Fire 165 | 10 10 33 42 4 10 . 13 40 3 . Melee 155 | . . . 5 . 46 20 41 1 27 15 Ram . | . . . . . . . . . . . Kick . | . . . . . . . . . . . Crush 2 | . . . . . . . . 2 . . Escape Stasis 70 | . . . 44 . 26 . . . . . Rewire 9 | . . . . . 9 . . . . . Trap 6 | . . . . . . 5 . 1 . . Miscellaneous . | . . . . . . . . . . . Route ------- -11/Scrapyard -10/Materials (discovered 3 exits: *Mat / [*Min] / [*Sub]) -9/Materials -9/Storage (discovered 2 exits: *Mat / Rec) -8/Materials -8/Garrison (discovered 3 exits: *Fac x3) -7/Factory (discovered 2 exits: *Fac / Gar) -7/Garrison (discovered 3 exits: *Fac x3) -7/Factory (discovered 2 exits: *Fac / Low) -6/Factory (discovered 2 exits: Low / Gar) -6/Garrison History --------- Turn | Location | Event 21 | -11/Scrapyard | Discovered new exit (range 15) 94 | -11/Scrapyard | Entered Materials 95 | -10/Materials | Met a group of wandering Federalists 137 | -10/Materials | Discovered new exit (range 7) 303 | -10/Materials | Build established: Mutant 548 | -10/Materials | Discovered new exit (range 5) 831 | -10/Materials | Discovered new exit (range 5) 834 | -10/Materials | Made a sacrifice at D.C.S.S. Altar Unit 834 | -10/Materials | Forcibly received Sfc. Transmogifier from X0-1V1 864 | -10/Materials | Core integrity fell below 50% 912 | -10/Materials | X0-1V1 made a cryptic comment about sterilization and BL-4Z3 939 | -10/Materials | X0-1V1 announced a LAN party 964 | -10/Materials | Entered another Materials area 964 | -9/Materials | Evolved 2 slots: Utility x1, Weapon x1 1022 | -9/Materials | X0-1V1 vaporized surrounding terrain (radius 19) 1095 | -9/Materials | Central database locked down 1246 | -9/Materials | Propulsion slot count permanently improved by X0-1V1 (+1) 1269 | -9/Materials | Build established: Gunner 1422 | -9/Materials | Discovered new exit (range 10) 1537 | -9/Materials | Entered Storage 1670 | -9/Storage | Identified exit to Recycling 1670 | -9/Storage | X0-1V1 revealed exit location to -9/Recycling 1851 | -9/Storage | Assisted by bots powering up and referring to "LRC-V3" 1966 | -9/Storage | Lost 3 allies 2108 | -9/Storage | Garrison activated, responded to threat 2135 | -9/Storage | Met a pair of Derelict thieves 2158 | -9/Storage | Build established: Commander-Gunner 2212 | -9/Storage | Core integrity fell below 50% 2230 | -9/Storage | Core integrity fell below 20% 2235 | -9/Storage | Lost 6 allies 2321 | -9/Storage | Identified exit to Materials 2395 | -9/Storage | X0-1V1 activates XOMVISION 2400 | -9/Storage | Entered Materials 2400 | -8/Materials | Evolved 2 slots: Utility x2 2471 | -8/Materials | X0-1V1 foreshadows a heat wave 2486 | -8/Materials | Identified exit to Garrison 2486 | -8/Materials | Entered Garrison 2504 | -8/Garrison | X0-1V1 destroyed Phase Generator 2504 | -8/Garrison | Phase Generator disabled 2509 | -8/Garrison | Melee accuracy permanently improved by X0-1V1 (+8%; -80 max core) 2794 | -8/Garrison | Triggered checkpoint 2880 | -8/Garrison | Discovered new exit (range 41) 2880 | -8/Garrison | Discovered new exit (range 66) 2880 | -8/Garrison | Discovered new exit (range 55) 2885 | -8/Garrison | Build established: Mutant 2927 | -8/Garrison | Rescued a captive Derelict 3157 | -8/Garrison | Weapon slot count temporarily expanded by X0-1V1 (+4) 3215 | -8/Garrison | Installed Relay Interface Framework 3221 | -8/Garrison | Triggered checkpoint 3262 | -8/Garrison | Entered Factory 3262 | -7/Factory | Evolved 2 slots: Propulsion x1, Utility x1 3270 | -7/Factory | X0-1V1 announced a LAN party 3346 | -7/Factory | Weapon slot count reverted to normal (-4) 3477 | -7/Factory | Ranged accuracy permanently improved by X0-1V1 (+9%; -90 max core) 3513 | -7/Factory | Fabricated Hvy. Rocket Launcher? 3547 | -7/Factory | Discovered new exit (range 14) 3597 | -7/Factory | Identified exit to Garrison 3597 | -7/Factory | Entered Garrison 3603 | -7/Garrison | Discovered new exit (range 51) 3603 | -7/Garrison | Discovered new exit (range 44) 3603 | -7/Garrison | Discovered new exit (range 69) 3653 | -7/Garrison | Found embedded Infiltrators 3663 | -7/Garrison | X0-1V1 destroyed Phase Generator 3663 | -7/Garrison | Phase Generator disabled 3679 | -7/Garrison | Expanded RIF knowledge: Threat Obfuscation 3697 | -7/Garrison | Build established: Gladiator 3699 | -7/Garrison | Aerolev Unit reconfigured into Item Mimic 3719 | -7/Garrison | Lost 5 parts (1n3u1w) 3753 | -7/Garrison | Triggered checkpoint 3759 | -7/Garrison | Core integrity fell below 50% 3787 | -7/Garrison | Triggered checkpoint 3794 | -7/Garrison | Lost 7 parts (1p4n1u1w) 3851 | -7/Garrison | Triggered checkpoint 4042 | -7/Garrison | X0-1V1 sent allied B-48 Gladiator (x4) 4130 | -7/Garrison | Expanded RIF knowledge: Coupler Efficiency 4154 | -7/Garrison | Build established: Scavenger-Tank 4166 | -7/Garrison | Entered Factory 4166 | -7/Factory | Accompanied by 3 allies 4470 | -7/Factory | Identified exit to Lower Caves 4470 | -7/Factory | X0-1V1 revealed exit location to -7/Lower Caves 4544 | -7/Factory | X0-1V1 sent you to a vault 4556 | -7/Factory | Found Prototype Slashing Weapon 4568 | -7/Factory | Found Prototype Slashing Weapon 4816 | -7/Factory | Identified Scimitar of Distortion (x2) 4902 | -7/Factory | X0-1V1 sent hostile Y-45 Defender (x1) 5214 | -7/Factory | Discovered new exit (range 3) 5285 | -7/Factory | Entered another Factory area 5285 | -6/Factory | Evolved 2 slots: Power x1, Utility x1 5368 | -6/Factory | Identified exit to Lower Caves 5368 | -6/Factory | X0-1V1 revealed exit location to -6/Lower Caves 5554 | -6/Factory | X0-1V1 sent you to a vault 5591 | -6/Factory | Spotted B-75 Beast 5606 | -6/Factory | Destroyed B-75 Beast 5890 | -6/Factory | Build established: Gladiator 6303 | -6/Factory | Build established: Mutant 6311 | -6/Factory | Identified exit to Garrison 6311 | -6/Factory | Entered Garrison 6357 | -6/Garrison | Spotted B-75 Beast 6399 | -6/Garrison | Core integrity fell below 50% 6412 | -6/Garrison | Core integrity fell below 20% 6418 | -6/Garrison | Destroyed by G-50 Soldier with Heavy Laser Last Messages --------------- 06370_ X0-1V1 is interested. 06370_ Acquired Lyr. Light Armor Plating. 06379_ Med. Treads destroyed. 06389_ X0-1V1's Piety Tracker destroyed. 06395_ Critical hit (Burn: +28). 06395_ Critical hit (Meltdown: +290). 06396_ Phase Cannon destroyed. 06401_ Imp. Medium Treads destroyed. 06402_ X0-1V1: "Your inner air conditioner seems to have fallen into disrepair." (-25 heat dissipation) 06408_ Med. Treads destroyed. X0-1V1's Piety Tracker suddenly appears amidst shimmering waves of color. 06411_ Magnetic Acceleration Cannon destroyed. 06411_ Destroyed Hvy. Plasma Cannon. 06411_ B-75 Beast system corrupted by crushing effect. 06412_ Sfc. Transmogrifier converts Hyb. Fission Core into Fusion Reactor. 06412_ Heat dissipation returns to normal. 06415_ Critical hit (Burn: +40). 06416_ Hardlight Generator destroyed. 06418_ X0-1V1 howls with laughter! Map ----- +----------------------------------------------------+ | ?????????????????????????????????????????????????? | | ?????????????????????????????????????????????????? | | ?????????????????????????????????????????????????? | | ?????????????????????????????????????????????????? | | ?????????????????????????????????????????????????? | | ?????????????????????????????????????????????????? | | ?????????????????????????????????????????????????? | | ?????????????????????????????????????????????????? | | ?????????????????????????????????????????????????? | | ?????????????????????????????????????????????????? | | ????????????????#######??????????????????????????? | | ????????????????# #? ????????????????????????? | | ????????????????# #? ????????????????????????? | | ????????????????# #? ????????????????????????? | | ????????????????# #? ????????????????????????? | | ????????????????# #? ????????????????????????? | | ????????????????## ##? ????????????????????????? | | ?????????????????# #?? #???????????????????????? | | ?????????????????# #?# #???????????????????????? | | ?????????????????# #? #???????????????????????? | | ?????????????????# #?# #???????????????????????? | | ?????????????????# #?#Y#???????????????????????? | | ?????????????????# #?# #???????????????????????? | | ?????############# ###%####????????????????????? | | ?????# ! Y gg %;BB#????????????????????? | | ?????# g % @BB#????????????????????? | | ?????# ######### #####% ####????????????????????? | | ????????????????#^#???####???????????????????????? | | ????????????????# #??????????????????????????????? | | ????????????????# #??????????????????????????????? | | ????????????????# ??????????????????????????????? | | ????????????????###??????????????????????????????? | | ?????????????????????????????????????????????????? | | ?????????????????????????????????????????????????? | | ?????????????????????????????????????????????????? | | ?????????????????????????????????????????????????? | | ?????????????????????????????????????????????????? | | ?????????????????????????????????????????????????? | | ?????????????????????????????????????????????????? | | ?????????????????????????????????????????????????? | | ?????????????????????????????????????????????????? | | ?????????????????????????????????????????????????? | | ?????????????????????????????????????????????????? | | ?????????????????????????????????????????????????? | | ?????????????????????????????????????????????????? | | ?????????????????????????????????????????????????? | | ?????????????????????????????????????????????????? | | ?????????????????????????????????????????????????? | | ?????????????????????????????????????????????????? | | ?????????????????????????????????????????????????? | +----------------------------------------------------+ Best States ------------- Heat Dissipation 80 Energy Generation 33 Energy Capacity 1700 Matter Stores 1000 Matter Capacity 1000 Sight Range 22 Terrain Scan Density 210 Additional Mass Support 6 Armor Coverage 550 Core Shielding 20 Melee Speed Boost 20 Phase Shifting 5 Evasion (%) 64 Targeting Accuracy 8 Melee Accuracy 20 Recoil Reduction 4 Offensive Hacking 20 Item Schematics ----------------- None Robot Schematics ------------------ None Fabricated ------------ Hvy. Rocket Launcher | x1 | -7/Factory | Preloaded Repaired ---------- Nothing Studied --------- None Alien Tech Used ----------------- None Achievements -------------- None Challenges ------------ None Game ------ Seed FortressTargetingDirector Manual? 0 Play Time 01:08:26 Cumulative 558.8 hours Start 2026.08.16 @ 21:01:05 End 2026.08.28 @ 02:40:12 Sessions 7 Manual Loads 0 Difficulty Rogue Special Mode None Game No. 382 Rogue 382 Adventurer 0 Explorer 0 Win Type - Total 55 Types 48/0/5/2/0/0/0/0/0/0 Lore% 83 Gallery% 76 Achievement% 54 Wizard Run 0 Options --------- Layout 0 ASCII 0 Keyboard 1 Movement Numpad Keybinds 0 Fullscreen 2 Font 24/Terminus Map View 76x50 Zoom Use 0% Tactical HUD 1 Map Filters NONE Filters NONE Steam 1 RUN: 875eda11-5e48-48b5-83ab-dd0ab9d96b21